[Event "*** Titled Tuesday 3|2 Blitz"]
[Site "Chess.com"]
[Date "2017.05.02"]
[Round "3"]
[White "Olkaa"]
[Black "IMVoja"]
[Result "1-0"]
[WhiteElo "2497"]
[BlackElo "2331"]
[TimeControl "180+2"]
[EndTime "13:35:36 PDT"]
[Termination "Olkaa won by resignation"]

1. e4 {[%clk 0:03:02]} 1... c6 {[%clk 0:03:00.2]} 2. d4 {[%clk 0:03:01.2]} 2...
d5 {[%clk 0:03:01]} 3. Nd2 {[%clk 0:03:02.8]} 3... dxe4 {[%clk 0:03:01.7]} 4.
Nxe4 {[%clk 0:03:04.7]} 4... Nf6 {[%clk 0:03:03.1]} 5. Nxf6+ {[%clk 0:03:05.5]}
5... exf6 {[%clk 0:03:05]} 6. c3 {[%clk 0:03:05.8]} 6... Bd6 {[%clk 0:03:05.3]}
7. Bd3 {[%clk 0:03:07.2]} 7... Be6 {[%clk 0:03:04.9]} 8. Qc2 {[%clk 0:03:08]}
8... h5 {[%clk 0:03:02]} 9. Ne2 {[%clk 0:02:55]} 9... Qc7 {[%clk 0:03:02.9]} 10.
Be3 {[%clk 0:02:42.4]} 10... Nd7 {[%clk 0:03:03.4]} 11. O-O-O {[%clk 0:02:42.5]}
11... O-O-O {[%clk 0:03:03.8]} 12. h4 {[%clk 0:02:38.4]} 12... c5 {[%clk
0:02:56.4]} 13. Kb1 {[%clk 0:02:34.5]} 13... c4 {[%clk 0:02:52]} 14. Be4 {[%clk
0:02:33.2]} 14... Nb6 {[%clk 0:02:50.7]} 15. g3 {[%clk 0:02:18.2]} 15... Bd7
{[%clk 0:02:45.1]} 16. Rde1 {[%clk 0:02:06.1]} 16... Kb8 {[%clk 0:02:45.5]} 17.
Nf4 {[%clk 0:02:06.4]} 17... g6 {[%clk 0:02:33]} 18. Ka1 {[%clk 0:02:03.5]}
18... Rhe8 {[%clk 0:02:32.2]} 19. Bc1 {[%clk 0:01:29.4]} 19... Ba4 {[%clk
0:02:26.4]} 20. Qd2 {[%clk 0:01:25.8]} 20... f5 {[%clk 0:02:24.1]} 21. Bf3
{[%clk 0:01:24.4]} 21... Bc6 {[%clk 0:02:14.3]} 22. Rxe8 {[%clk 0:01:15.8]}
22... Rxe8 {[%clk 0:02:04.3]} 23. Bxc6 {[%clk 0:01:10.6]} 23... Qxc6 {[%clk
0:02:03.7]} 24. Re1 {[%clk 0:01:12.1]} 24... Re4 {[%clk 0:01:50.8]} 25. Qd1
{[%clk 0:00:57]} 25... Qe8 {[%clk 0:01:44.8]} 26. Re3 {[%clk 0:00:52.6]} 26...
Bxf4 {[%clk 0:01:43.7]} 27. Rxe4 {[%clk 0:00:53]} 27... Qxe4 {[%clk 0:01:43.2]}
28. Bxf4+ {[%clk 0:00:53.7]} 28... Kc8 {[%clk 0:01:44.9]} 29. f3 {[%clk
0:00:53]} 29... Qd5 {[%clk 0:01:21]} 30. Qe2 {[%clk 0:00:51.5]} 30... Kd7 {[%clk
0:01:18.5]} 31. Kb1 {[%clk 0:00:51]} 31... Qe6 {[%clk 0:01:14.2]} 32. Qd1 {[%clk
0:00:45.2]} 32... Qc6 {[%clk 0:01:08.9]} 33. Qe2 {[%clk 0:00:38.7]} 33... Qe6
{[%clk 0:01:07.6]} 34. Qd1 {[%clk 0:00:33.5]} 34... a6 {[%clk 0:01:08.7]} 35. b3
{[%clk 0:00:31.9]} 35... Qd5 {[%clk 0:01:06.2]} 36. Kc2 {[%clk 0:00:31.3]} 36...
Nc8 {[%clk 0:01:05.1]} 37. Qe2 {[%clk 0:00:31.8]} 37... Ne7 {[%clk 0:01:00.7]}
38. bxc4 {[%clk 0:00:27.4]} 38... Qc6 {[%clk 0:00:58.4]} 39. Bg5 {[%clk
0:00:25.6]} 39... Nc8 {[%clk 0:00:54.9]} 40. Kd3 {[%clk 0:00:23.5]} 40... b5
{[%clk 0:00:55.1]} 41. cxb5 {[%clk 0:00:22.3]} 41... axb5 {[%clk 0:00:54.8]} 42.
Kd2 {[%clk 0:00:18.3]} 42... Qd5 {[%clk 0:00:51.4]} 43. Ke1 {[%clk 0:00:16.9]}
43... Qe6 {[%clk 0:00:50.3]} 44. Kf2 {[%clk 0:00:16.7]} 44... Qxe2+ {[%clk
0:00:48.7]} 45. Kxe2 {[%clk 0:00:17.9]} 45... Ke6 {[%clk 0:00:50.1]} 46. Kd3
{[%clk 0:00:14.2]} 46... Kd5 {[%clk 0:00:49.4]} 47. a4 {[%clk 0:00:14.6]} 47...
bxa4 {[%clk 0:00:45.6]} 48. c4+ {[%clk 0:00:15.7]} 48... Kc6 {[%clk 0:00:47.3]}
49. Kc3 {[%clk 0:00:15.5]} 49... Nd6 {[%clk 0:00:48]} 50. Be7 {[%clk 0:00:15.5]}
50... Nc8 {[%clk 0:00:48.3]} 51. Bc5 {[%clk 0:00:15.8]} 51... f6 {[%clk
0:00:45]} 52. f4 {[%clk 0:00:14]} 52... a3 {[%clk 0:00:36.5]} 53. Kb3 {[%clk
0:00:14.8]} 53... a2 {[%clk 0:00:37.8]} 54. Kxa2 {[%clk 0:00:15.8]} 54... Kd7
{[%clk 0:00:38.5]} 55. Kb3 {[%clk 0:00:17.2]} 55... Kc6 {[%clk 0:00:39.9]} 56.
Kb4 {[%clk 0:00:18.3]} 56... Kc7 {[%clk 0:00:41.2]} 57. d5 {[%clk 0:00:19.1]}
57... Kd7 {[%clk 0:00:43.1]} 58. Kb5 {[%clk 0:00:20.2]} 58... Kc7 {[%clk
0:00:44.3]} 59. Ka6 {[%clk 0:00:21.1]} 59... Kd7 {[%clk 0:00:44.9]} 60. Kb7
{[%clk 0:00:22]} 60... Nd6+ {[%clk 0:00:45.3]} 61. Bxd6 {[%clk 0:00:22.8]} 61...
Kxd6 {[%clk 0:00:47.2]} 62. Kb6 {[%clk 0:00:24.1]} 62... Kd7 {[%clk 0:00:48.8]}
63. c5 {[%clk 0:00:25.4]} 63... g5 {[%clk 0:00:50.4]} 64. c6+ {[%clk 0:00:25.2]}
64... Kd6 {[%clk 0:00:51.1]} 65. c7 {[%clk 0:00:26.4]} 65... Kd7 {[%clk
0:00:52.2]} 66. Kb7 {[%clk 0:00:27.3]} 1-0

[Event "*** Titled Tuesday 3|2 Blitz"]
[Site "Chess.com"]
[Date "2017.05.02"]
[Round "3"]
[White "grzechu96"]
[Black "FearlessKing64"]
[Result "1-0"]
[WhiteElo "2367"]
[BlackElo "2139"]
[TimeControl "180+2"]
[EndTime "13:35:40 PDT"]
[Termination "grzechu96 won by resignation"]

1. e4 {[%clk 0:03:02]} 1... c5 {[%clk 0:03:00.2]} 2. Nf3 {[%clk 0:03:02.9]} 2...
d6 {[%clk 0:03:01.5]} 3. d4 {[%clk 0:03:03.8]} 3... cxd4 {[%clk 0:03:03.4]} 4.
Nxd4 {[%clk 0:03:05.7]} 4... Nf6 {[%clk 0:03:04.8]} 5. Nc3 {[%clk 0:03:07.2]}
5... a6 {[%clk 0:03:05.4]} 6. Be3 {[%clk 0:03:07.6]} 6... e5 {[%clk 0:03:06.3]}
7. Nb3 {[%clk 0:03:08.9]} 7... Be6 {[%clk 0:03:07.9]} 8. f3 {[%clk 0:03:09.6]}
8... Be7 {[%clk 0:03:09.1]} 9. Qd2 {[%clk 0:03:11.3]} 9... O-O {[%clk
0:03:10.4]} 10. O-O-O {[%clk 0:03:12.4]} 10... Nbd7 {[%clk 0:03:11.7]} 11. g4
{[%clk 0:03:13.8]} 11... b5 {[%clk 0:03:13.2]} 12. g5 {[%clk 0:03:11.9]} 12...
b4 {[%clk 0:03:14.1]} 13. Ne2 {[%clk 0:02:44.8]} 13... Ne8 {[%clk 0:03:10.8]}
14. f4 {[%clk 0:02:46.1]} 14... a5 {[%clk 0:03:07.9]} 15. f5 {[%clk 0:02:47.6]}
15... Bxb3 {[%clk 0:03:08.3]} 16. cxb3 {[%clk 0:02:46.2]} 16... a4 {[%clk
0:03:09.4]} 17. bxa4 {[%clk 0:01:50.3]} 17... Rxa4 {[%clk 0:03:11.3]} 18. Kb1
{[%clk 0:01:51.3]} 18... Rxa2 {[%clk 0:03:10.2]} 19. Nc1 {[%clk 0:01:51.4]}
19... Ra8 {[%clk 0:03:01.2]} 20. Nb3 {[%clk 0:01:51.3]} 20... Qc7 {[%clk
0:02:51]} 21. Bb5 {[%clk 0:01:35]} 21... Qb7 {[%clk 0:02:25.8]} 22. Qd5 {[%clk
0:01:21.2]} 22... Rb8 {[%clk 0:01:54.2]} 23. Qxb7 {[%clk 0:01:20.3]} 23... Rxb7
{[%clk 0:01:55.4]} 24. Bc6 {[%clk 0:01:18.2]} 24... Rc7 {[%clk 0:01:56.4]} 25.
Rc1 {[%clk 0:01:19.2]} 25... Nc5 {[%clk 0:01:45.4]} 26. Bd5 {[%clk 0:01:14]}
26... Ra7 {[%clk 0:01:20.6]} 27. Nxc5 {[%clk 0:00:46.5]} 27... dxc5 {[%clk
0:01:18.6]} 28. Rxc5 {[%clk 0:00:46.1]} 28... Bxc5 {[%clk 0:01:10.7]} 29. Bxc5
{[%clk 0:00:48]} 29... Rd7 {[%clk 0:01:04.1]} 30. Bxf8 {[%clk 0:00:18.9]} 30...
Kxf8 {[%clk 0:01:06]} 31. Rc1 {[%clk 0:00:17.8]} 31... Nd6 {[%clk 0:00:56.1]}
32. Rc6 {[%clk 0:00:16.9]} 32... Ke7 {[%clk 0:00:52.9]} 33. Rb6 {[%clk
0:00:13.6]} 33... f6 {[%clk 0:00:54]} 34. gxf6+ {[%clk 0:00:14.2]} 34... gxf6
{[%clk 0:00:54.8]} 35. Rxb4 {[%clk 0:00:15.3]} 35... Nf7 {[%clk 0:00:46.4]} 36.
Rb6 {[%clk 0:00:14.7]} 36... Ng5 {[%clk 0:00:42.8]} 37. Rb8 {[%clk 0:00:15.3]}
37... Kd6 {[%clk 0:00:33.4]} 38. h4 {[%clk 0:00:15.2]} 38... Nf3 {[%clk
0:00:33.1]} 39. h5 {[%clk 0:00:14.6]} 39... Kc5 {[%clk 0:00:32.8]} 40. Rf8
{[%clk 0:00:13.2]} 40... Nd2+ {[%clk 0:00:30.2]} 41. Kc2 {[%clk 0:00:13.7]}
41... Nf1 {[%clk 0:00:30.9]} 42. Rxf6 {[%clk 0:00:13.4]} 42... Kd4 {[%clk
0:00:32.4]} 43. Rf7 {[%clk 0:00:12.2]} 43... Ne3+ {[%clk 0:00:30.4]} 44. Kd2
{[%clk 0:00:11.2]} 44... Rd8 {[%clk 0:00:28.1]} 45. Rxh7 {[%clk 0:00:11.9]}
45... Rc8 {[%clk 0:00:26.6]} 46. Rb7 {[%clk 0:00:09.5]} 46... Rc2+ {[%clk
0:00:26.8]} 47. Ke1 {[%clk 0:00:11]} 47... Ng2+ {[%clk 0:00:25.6]} 48. Kf1
{[%clk 0:00:12.6]} 48... Ne3+ {[%clk 0:00:26.8]} 49. Kg1 {[%clk 0:00:13.7]}
49... Rg2+ {[%clk 0:00:27.8]} 50. Kh1 {[%clk 0:00:15.2]} 50... Rg5 {[%clk
0:00:16.9]} 51. Bf7 {[%clk 0:00:16.6]} 51... Kd3 {[%clk 0:00:17.1]} 52. h6
{[%clk 0:00:14.7]} 52... Ke2 {[%clk 0:00:16.1]} 53. Rb3 {[%clk 0:00:10.2]} 53...
Kf2 {[%clk 0:00:16.4]} 54. Rxe3 {[%clk 0:00:11.4]} 54... Kxe3 {[%clk 0:00:14.1]}
55. h7 {[%clk 0:00:12.9]} 1-0

[Event "*** Titled Tuesday 3|2 Blitz"]
[Site "Chess.com"]
[Date "2017.05.02"]
[Round "3"]
[White "olgerts_indricans"]
[Black "pedroholly22"]
[Result "1-0"]
[WhiteElo "2269"]
[BlackElo "2260"]
[TimeControl "180+2"]
[EndTime "13:35:40 PDT"]
[Termination "olgerts_indricans won by checkmate"]

1. e4 {[%clk 0:03:02]} 1... e5 {[%clk 0:02:59.2]} 2. Nf3 {[%clk 0:03:02.2]} 2...
Nc6 {[%clk 0:02:55.2]} 3. Bc4 {[%clk 0:03:02.7]} 3... Nf6 {[%clk 0:02:54.4]} 4.
d3 {[%clk 0:03:03.2]} 4... Bc5 {[%clk 0:02:50.1]} 5. c3 {[%clk 0:03:03.6]} 5...
O-O {[%clk 0:02:47.7]} 6. a4 {[%clk 0:03:04]} 6... d5 {[%clk 0:02:48.3]} 7. exd5
{[%clk 0:03:01.3]} 7... Nxd5 {[%clk 0:02:45.1]} 8. b4 {[%clk 0:02:52.8]} 8...
Be7 {[%clk 0:02:44.4]} 9. Qb3 {[%clk 0:02:30.6]} 9... Be6 {[%clk 0:02:42.7]} 10.
O-O {[%clk 0:02:30.6]} 10... a6 {[%clk 0:02:43.5]} 11. a5 {[%clk 0:02:27]} 11...
b5 {[%clk 0:02:38.6]} 12. axb6 {[%clk 0:02:27.7]} 12... cxb6 {[%clk 0:02:39]}
13. Qa2 {[%clk 0:02:18.1]} 13... b5 {[%clk 0:02:34.1]} 14. Bb3 {[%clk
0:02:18.6]} 14... a5 {[%clk 0:02:35.3]} 15. bxa5 {[%clk 0:02:07.4]} 15... Nxa5
{[%clk 0:02:28.4]} 16. Bxd5 {[%clk 0:01:53.7]} 16... Bxd5 {[%clk 0:02:25.1]} 17.
Qe2 {[%clk 0:01:54.2]} 17... e4 {[%clk 0:02:21.4]} 18. Nfd2 {[%clk 0:01:44.1]}
18... exd3 {[%clk 0:02:05.6]} 19. Qxd3 {[%clk 0:01:44.4]} 19... Bf6 {[%clk
0:02:02.9]} 20. Qxb5 {[%clk 0:01:41.2]} 20... Bc6 {[%clk 0:01:27.5]} 21. Qf5
{[%clk 0:01:17.2]} 21... Qc7 {[%clk 0:01:12.2]} 22. Ba3 {[%clk 0:01:04.3]} 22...
Rfe8 {[%clk 0:01:09.3]} 23. Bb4 {[%clk 0:01:04.3]} 23... Nb7 {[%clk 0:01:05.7]}
24. Rxa8 {[%clk 0:00:59.2]} 24... Rxa8 {[%clk 0:01:07.6]} 25. Ne4 {[%clk
0:00:59.3]} 25... Bd8 {[%clk 0:01:04]} 26. Nbd2 {[%clk 0:00:43.8]} 26... g6
{[%clk 0:01:00.8]} 27. Qh3 {[%clk 0:00:26.6]} 27... f5 {[%clk 0:00:57.9]} 28.
Nc5 {[%clk 0:00:15.2]} 28... Nxc5 {[%clk 0:00:57]} 29. Bxc5 {[%clk 0:00:17.1]}
29... Bb5 {[%clk 0:00:52.8]} 30. Bd4 {[%clk 0:00:10.4]} 30... Bxf1 {[%clk
0:00:51.8]} 31. Nxf1 {[%clk 0:00:12.3]} 31... Ra1 {[%clk 0:00:50.5]} 32. Qd3
{[%clk 0:00:13]} 32... Qc6 {[%clk 0:00:43.7]} 33. h4 {[%clk 0:00:13.5]} 33...
Bxh4 {[%clk 0:00:41.2]} 34. g3 {[%clk 0:00:14.5]} 34... Bf6 {[%clk 0:00:40.3]}
35. c4 {[%clk 0:00:11.7]} 35... Bxd4 {[%clk 0:00:38.7]} 36. Qxd4 {[%clk
0:00:13.6]} 36... Ra8 {[%clk 0:00:38.4]} 37. Ne3 {[%clk 0:00:13.5]} 37... Ra1+
{[%clk 0:00:34.2]} 38. Qxa1 {[%clk 0:00:12.1]} 38... f4 {[%clk 0:00:33.9]} 39.
gxf4 {[%clk 0:00:11.8]} 39... Qf3 {[%clk 0:00:34.3]} 40. Qf6 {[%clk 0:00:10.2]}
40... Qe2 {[%clk 0:00:32.8]} 41. f5 {[%clk 0:00:10.8]} 41... Qe1+ {[%clk
0:00:33]} 42. Kg2 {[%clk 0:00:12.1]} 42... Qb1 {[%clk 0:00:32]} 43. Qe6+ {[%clk
0:00:12.9]} 43... Kg7 {[%clk 0:00:32.6]} 44. Qe5+ {[%clk 0:00:14.1]} 44... Kh6
{[%clk 0:00:32.8]} 45. Qf4+ {[%clk 0:00:15.1]} 45... Kg7 {[%clk 0:00:32.8]} 46.
Qe5+ {[%clk 0:00:16.5]} 46... Kh6 {[%clk 0:00:33.7]} 47. f6 {[%clk 0:00:17.9]}
47... Qd1 {[%clk 0:00:30]} 48. Nxd1 {[%clk 0:00:17.5]} 48... g5 {[%clk
0:00:28.3]} 49. Ne3 {[%clk 0:00:15.4]} 49... Kh5 {[%clk 0:00:28.5]} 50. Qf5
{[%clk 0:00:13.6]} 50... h6 {[%clk 0:00:29.7]} 51. f7 {[%clk 0:00:13.1]} 51...
Kh4 {[%clk 0:00:30.8]} 52. Qg4# {[%clk 0:00:15]} 1-0

[Event "*** Titled Tuesday 3|2 Blitz"]
[Site "Chess.com"]
[Date "2017.05.02"]
[Round "3"]
[White "hypert"]
[Black "BjarkeSahl"]
[Result "1/2-1/2"]
[WhiteElo "2276"]
[BlackElo "2154"]
[TimeControl "180+2"]
[EndTime "13:35:54 PDT"]
[Termination "Game drawn by repetition"]

1. e4 {[%clk 0:03:02]} 1... c5 {[%clk 0:02:50.1]} 2. Nf3 {[%clk 0:03:02.7]} 2...
e6 {[%clk 0:02:49.4]} 3. d4 {[%clk 0:03:03.3]} 3... cxd4 {[%clk 0:02:50.9]} 4.
Nxd4 {[%clk 0:03:05]} 4... Nc6 {[%clk 0:02:52.4]} 5. Nc3 {[%clk 0:03:05.8]} 5...
Nf6 {[%clk 0:02:51.5]} 6. Ndb5 {[%clk 0:03:02.2]} 6... d6 {[%clk 0:02:49.8]} 7.
Bf4 {[%clk 0:03:01.3]} 7... e5 {[%clk 0:02:50.5]} 8. Bg5 {[%clk 0:03:02.2]} 8...
a6 {[%clk 0:02:52.1]} 9. Na3 {[%clk 0:03:03.4]} 9... b5 {[%clk 0:02:53.7]} 10.
Nd5 {[%clk 0:03:04.8]} 10... Be7 {[%clk 0:02:55.2]} 11. Bxf6 {[%clk 0:03:05]}
11... Bxf6 {[%clk 0:02:56.7]} 12. c4 {[%clk 0:03:06.6]} 12... O-O {[%clk
0:02:55.6]} 13. cxb5 {[%clk 0:03:06.2]} 13... Nd4 {[%clk 0:02:51.3]} 14. Bd3
{[%clk 0:03:05.4]} 14... axb5 {[%clk 0:02:35.1]} 15. Nxb5 {[%clk 0:03:02.3]}
15... Nxb5 {[%clk 0:02:31.4]} 16. Bxb5 {[%clk 0:02:53.8]} 16... Qa5+ {[%clk
0:02:31.6]} 17. Nc3 {[%clk 0:02:54.7]} 17... d5 {[%clk 0:02:27.1]} 18. Qxd5
{[%clk 0:02:26]} 18... Rd8 {[%clk 0:02:11.2]} 19. Qc4 {[%clk 0:02:00.1]} 19...
Be6 {[%clk 0:02:11.6]} 20. Qe2 {[%clk 0:01:59.9]} 20... Bg5 {[%clk 0:02:06.6]}
21. Rd1 {[%clk 0:01:29.2]} 21... Rxd1+ {[%clk 0:02:05.9]} 22. Qxd1 {[%clk
0:01:27.4]} 22... Rd8 {[%clk 0:02:06.3]} 23. Qa4 {[%clk 0:01:17.4]} 23... Bd2+
{[%clk 0:02:06]} 24. Ke2 {[%clk 0:01:15.3]} 24... Bxc3 {[%clk 0:02:05.1]} 25.
bxc3 {[%clk 0:01:16.7]} 25... Qxc3 {[%clk 0:02:00.8]} 26. Rd1 {[%clk 0:01:13.7]}
26... Rb8 {[%clk 0:01:40.4]} 27. Kf1 {[%clk 0:00:54.2]} 27... g6 {[%clk
0:01:38.7]} 28. Kg1 {[%clk 0:00:48.1]} 28... Bg4 {[%clk 0:01:28.8]} 29. Rf1
{[%clk 0:00:36.5]} 29... Kg7 {[%clk 0:01:23.1]} 30. h3 {[%clk 0:00:36.9]} 30...
Be6 {[%clk 0:01:22]} 31. Bc6 {[%clk 0:00:37]} 31... Bc4 {[%clk 0:01:18.5]} 32.
Rd1 {[%clk 0:00:32.2]} 32... Be2 {[%clk 0:01:13.8]} 33. Rd7 {[%clk 0:00:28.5]}
33... Rb1+ {[%clk 0:01:14.2]} 34. Kh2 {[%clk 0:00:28.4]} 34... Bc4 {[%clk
0:01:05.7]} 35. Bd5 {[%clk 0:00:27.9]} 35... Bxd5 {[%clk 0:01:04.8]} 36. exd5
{[%clk 0:00:29.3]} 36... Rb4 {[%clk 0:01:00.5]} 37. Qa7 {[%clk 0:00:28.4]} 37...
Rf4 {[%clk 0:01:00.4]} 38. Qe3 {[%clk 0:00:26.4]} 38... Qb2 {[%clk 0:00:54.6]}
39. Re7 {[%clk 0:00:24.6]} 39... Rf5 {[%clk 0:00:53.1]} 40. d6 {[%clk
0:00:25.1]} 40... Qd4 {[%clk 0:00:48.2]} 41. Qxd4 {[%clk 0:00:21.1]} 41... exd4
{[%clk 0:00:49.1]} 42. Ra7 {[%clk 0:00:22.7]} 42... Rd5 {[%clk 0:00:50]} 43. Rc7
{[%clk 0:00:22.1]} 43... Rxd6 {[%clk 0:00:49.4]} 44. Rc1 {[%clk 0:00:23.7]}
44... Ra6 {[%clk 0:00:49.8]} 45. Rd1 {[%clk 0:00:23.8]} 45... Rxa2 {[%clk
0:00:47.6]} 46. Rxd4 {[%clk 0:00:24.5]} 46... Rxf2 {[%clk 0:00:48.7]} 47. Kg3
{[%clk 0:00:26.1]} 47... Rf5 {[%clk 0:00:50]} 48. h4 {[%clk 0:00:27.4]} 48... h5
{[%clk 0:00:51.4]} 49. Kh3 {[%clk 0:00:28.1]} 49... Re5 {[%clk 0:00:51.3]} 50.
g3 {[%clk 0:00:29]} 50... Kf6 {[%clk 0:00:52.5]} 51. Kg2 {[%clk 0:00:30.1]}
51... Ke6 {[%clk 0:00:53.5]} 52. Kf3 {[%clk 0:00:31]} 52... Rd5 {[%clk
0:00:54.5]} 53. Ra4 {[%clk 0:00:32.1]} 53... Rd3+ {[%clk 0:00:54.7]} 54. Kf4
{[%clk 0:00:31.5]} 54... Rd6 {[%clk 0:00:54.7]} 55. Ra5 {[%clk 0:00:31.8]} 55...
Kf6 {[%clk 0:00:55.9]} 56. Ra8 {[%clk 0:00:32]} 56... Rd4+ {[%clk 0:00:56.7]}
57. Kf3 {[%clk 0:00:33.6]} 57... Ke5 {[%clk 0:00:54.9]} 58. Ra5+ {[%clk
0:00:34.2]} 58... Rd5 {[%clk 0:00:55.9]} 59. Ra8 {[%clk 0:00:34.3]} 59... Rd3+
{[%clk 0:00:56.6]} 60. Kf2 {[%clk 0:00:35.4]} 60... Kf5 {[%clk 0:00:57]} 61. Ra4
{[%clk 0:00:34.5]} 61... f6 {[%clk 0:00:56.8]} 62. Rf4+ {[%clk 0:00:35.4]} 62...
Ke5 {[%clk 0:00:57.9]} 63. Ra4 {[%clk 0:00:36.4]} 63... Rd4 {[%clk 0:00:58.7]}
64. Ra5+ {[%clk 0:00:36.4]} 64... Ke4 {[%clk 0:00:58.2]} 65. Ra2 {[%clk
0:00:38]} 65... f5 {[%clk 0:00:57.4]} 66. Re2+ {[%clk 0:00:38.8]} 66... Kd5
{[%clk 0:00:59]} 67. Re8 {[%clk 0:00:38.5]} 67... Re4 {[%clk 0:00:57.4]} 68. Rg8
{[%clk 0:00:39.4]} 68... Re6 {[%clk 0:00:58.1]} 69. Kf3 {[%clk 0:00:41]} 69...
Ke5 {[%clk 0:00:59.3]} 70. Ra8 {[%clk 0:00:41.4]} 70... Rd6 {[%clk 0:00:58.1]}
71. Ra5+ {[%clk 0:00:41.3]} 71... Rd5 {[%clk 0:00:58.5]} 72. Ra3 {[%clk
0:00:42.9]} 72... Rd4 {[%clk 0:00:57.9]} 73. Ra5+ {[%clk 0:00:43.2]} 73... Rd5
{[%clk 0:00:58.5]} 74. Ra3 {[%clk 0:00:44.1]} 74... Rd4 {[%clk 0:00:55.8]} 75.
Ra5+ {[%clk 0:00:44.4]} 75... Rd5 {[%clk 0:00:57.1]} 76. Ra3 {[%clk 0:00:45.2]}
76... Rd4 {[%clk 0:00:58.5]} 1/2-1/2

[Event "*** Titled Tuesday 3|2 Blitz"]
[Site "Chess.com"]
[Date "2017.05.02"]
[Round "3"]
[White "kleinebeer98"]
[Black "anon102030"]
[Result "1-0"]
[WhiteElo "2455"]
[BlackElo "2583"]
[TimeControl "180+2"]
[EndTime "13:35:55 PDT"]
[Termination "kleinebeer98 won on time"]

1. e4 {[%clk 0:03:02]} 1... e5 {[%clk 0:02:51.5]} 2. Nf3 {[%clk 0:03:02]} 2...
Nc6 {[%clk 0:02:52.1]} 3. Bb5 {[%clk 0:03:03.4]} 3... Nge7 {[%clk 0:02:49.2]} 4.
O-O {[%clk 0:03:01]} 4... d6 {[%clk 0:02:50.3]} 5. c3 {[%clk 0:02:58.5]} 5...
Bd7 {[%clk 0:02:45]} 6. d4 {[%clk 0:02:58.2]} 6... Ng6 {[%clk 0:02:41]} 7. Re1
{[%clk 0:02:49.8]} 7... Be7 {[%clk 0:02:35.9]} 8. Nbd2 {[%clk 0:02:50.5]} 8...
O-O {[%clk 0:02:35.7]} 9. Nf1 {[%clk 0:02:50.3]} 9... Nxd4 {[%clk 0:02:35.6]}
10. Nxd4 {[%clk 0:02:48.7]} 10... exd4 {[%clk 0:02:36]} 11. Bxd7 {[%clk
0:02:49.5]} 11... Qxd7 {[%clk 0:02:37.9]} 12. cxd4 {[%clk 0:02:50.8]} 12... d5
{[%clk 0:02:39.3]} 13. exd5 {[%clk 0:02:36.3]} 13... Qxd5 {[%clk 0:02:37.1]} 14.
Ne3 {[%clk 0:02:37.8]} 14... Qd7 {[%clk 0:02:36]} 15. Bd2 {[%clk 0:02:09.3]}
15... Qxd4 {[%clk 0:02:31.8]} 16. Nf5 {[%clk 0:02:08.5]} 16... Qf6 {[%clk
0:02:19.2]} 17. Nxe7+ {[%clk 0:01:41.4]} 17... Nxe7 {[%clk 0:02:21.1]} 18. Bc3
{[%clk 0:01:43.3]} 18... Qg5 {[%clk 0:02:21.7]} 19. Re5 {[%clk 0:01:33]} 19...
Qf6 {[%clk 0:02:11.1]} 20. Re4 {[%clk 0:01:30.9]} 20... Qg5 {[%clk 0:02:01.4]}
21. Rg4 {[%clk 0:01:31.7]} 21... Qh6 {[%clk 0:01:39.2]} 22. Bxg7 {[%clk
0:01:25.2]} 22... Qxg7 {[%clk 0:01:41.1]} 23. Rxg7+ {[%clk 0:01:26.3]} 23...
Kxg7 {[%clk 0:01:41.9]} 24. Qd4+ {[%clk 0:01:23.9]} 24... f6 {[%clk 0:01:42.6]}
25. Re1 {[%clk 0:01:21.6]} 25... Rf7 {[%clk 0:01:42.4]} 26. h4 {[%clk
0:01:19.8]} 26... Nc6 {[%clk 0:01:40.8]} 27. Qc3 {[%clk 0:01:16.7]} 27... h5
{[%clk 0:01:35.9]} 28. Re6 {[%clk 0:01:13.2]} 28... Rg8 {[%clk 0:01:31.6]} 29.
Qg3+ {[%clk 0:01:00.7]} 29... Kh7 {[%clk 0:01:15.9]} 30. Qf3 {[%clk 0:00:57.7]}
30... Kg6 {[%clk 0:01:03.7]} 31. b4 {[%clk 0:00:59.1]} 31... Rd8 {[%clk
0:01:00.5]} 32. Qg3+ {[%clk 0:00:45.8]} 32... Kh7 {[%clk 0:00:58.6]} 33. Qf4
{[%clk 0:00:43.8]} 33... Kg6 {[%clk 0:00:57.7]} 34. Qg5+ {[%clk 0:00:34.9]}
34... Kh7 {[%clk 0:00:57.5]} 35. Rxf6 {[%clk 0:00:33.6]} 35... Rg7 {[%clk
0:00:56.5]} 36. Qxh5+ {[%clk 0:00:29.3]} 36... Kg8 {[%clk 0:00:58.4]} 37. Rh6
{[%clk 0:00:30.9]} 37... Kf8 {[%clk 0:00:55.7]} 38. b5 {[%clk 0:00:25.6]} 38...
Ne7 {[%clk 0:00:52.5]} 39. Rh8+ {[%clk 0:00:22.9]} 39... Ng8 {[%clk 0:00:53]}
40. Qf5+ {[%clk 0:00:24.1]} 40... Rf7 {[%clk 0:00:54.1]} 41. Qg5 {[%clk
0:00:23]} 41... Rd1+ {[%clk 0:00:54.3]} 42. Kh2 {[%clk 0:00:23.3]} 42... Rg7
{[%clk 0:00:56.2]} 43. Qf6+ {[%clk 0:00:19]} 43... Rf7 {[%clk 0:00:56.4]} 44.
Qh6+ {[%clk 0:00:18]} 44... Rg7 {[%clk 0:00:51.9]} 45. Qf4+ {[%clk 0:00:12.8]}
45... Rf7 {[%clk 0:00:51.4]} 46. Rxg8+ {[%clk 0:00:13.1]} 46... Kxg8 {[%clk
0:00:48]} 47. Qg4+ {[%clk 0:00:14.5]} 1-0